[Event "Titled Tuesday Blitz December 13 Late 2022"]
[White "Bogaudinov, Rushan"]
[Black "De Souza, Cristiano Gomes"]
[WhiteFideId "4129288"]
[BlackFideId "2151758"]
[WhiteElo "2028"]
[BlackElo "2068"]
[Result "1-0"]
[Round "09"]
[TimeControl "180+1"]
[Date "2022.12.14"]
[WhiteClock "0:00:30"]
[BlackClock "0:00:28"]

1. a3 {[%clk 0:02:58]}  Nf6 {[%clk 0:02:57]} 2. d4 {[%clk 0:02:56]}  g6 {[%clk 0:02:56]} 3. c4 {[%clk 0:02:56]}  Bg7 {[%clk 0:02:56]} 4. b4 {[%clk 0:02:55]}  O-O {[%clk 0:02:57]} 5. Bb2 {[%clk 0:02:55]}  d6 {[%clk 0:02:56]} 6. Nc3 {[%clk 0:02:54]}  Nbd7 {[%clk 0:02:56]} 7. e4 {[%clk 0:02:51]}  c5 {[%clk 0:02:56]} 8. bxc5 {[%clk 0:02:44]}  dxc5 {[%clk 0:02:55]} 9. Nf3 {[%clk 0:02:34]}  cxd4 {[%clk 0:02:54]} 10. Qxd4 {[%clk 0:02:35]}  Ng4 {[%clk 0:02:47]} 11. Qd2 {[%clk 0:02:31]}  Nde5 {[%clk 0:02:46]} 12. Qxd8 {[%clk 0:02:17]}  Rxd8 {[%clk 0:02:46]} 13. Nxe5 {[%clk 0:02:16]}  Nxe5 {[%clk 0:02:45]} 14. Rd1 {[%clk 0:02:10]}  Rxd1+ {[%clk 0:02:42]} 15. Kxd1 {[%clk 0:02:10]}  Be6 {[%clk 0:02:42]} 16. Nd5 {[%clk 0:02:09]}  Bxd5 {[%clk 0:02:31]} 17. cxd5 {[%clk 0:02:06]}  Ng4 {[%clk 0:02:29]} 18. Bxg7 {[%clk 0:02:01]}  Nxf2+ {[%clk 0:02:19]} 19. Ke1 {[%clk 0:01:51]}  Nxh1 {[%clk 0:02:19]} 20. Bd4 {[%clk 0:01:50]}  Rc8 {[%clk 0:02:06]} 21. Kd2 {[%clk 0:01:48]}  b6 {[%clk 0:01:55]} 22. Be2 {[%clk 0:01:39]}  e6 {[%clk 0:01:46]} 23. Bf3 {[%clk 0:01:37]}  exd5 {[%clk 0:01:46]} 24. exd5 {[%clk 0:01:37]}  Kf8 {[%clk 0:01:38]} 25. g3 {[%clk 0:01:36]}  Nxg3 {[%clk 0:01:37]} 26. hxg3 {[%clk 0:01:36]}  Ke7 {[%clk 0:01:37]} 27. Bc3 {[%clk 0:01:24]}  f5 {[%clk 0:01:33]} 28. Bb4+ {[%clk 0:01:21]}  Kf6 {[%clk 0:01:32]} 29. Be2 {[%clk 0:01:17]}  Ke5 {[%clk 0:01:29]} 30. d6 {[%clk 0:00:59]}  a5 {[%clk 0:01:28]} 31. d7 {[%clk 0:00:58]}  Rd8 {[%clk 0:01:26]} 32. Bc3+ {[%clk 0:00:58]}  Ke4 {[%clk 0:01:23]} 33. Bb5 {[%clk 0:00:58]}  Kf3 {[%clk 0:01:05]} 34. Be5 {[%clk 0:00:52]}  Ke4 {[%clk 0:01:03]} 35. Bc7 {[%clk 0:00:52]}  Rxd7+ {[%clk 0:00:46]} 36. Bxd7 {[%clk 0:00:52]}  g5 {[%clk 0:00:45]} 37. Bxb6 {[%clk 0:00:51]}  f4 {[%clk 0:00:45]} 38. gxf4 {[%clk 0:00:43]}  gxf4 {[%clk 0:00:45]} 39. Bxa5 {[%clk 0:00:43]}  h5 {[%clk 0:00:43]} 40. Bb6 {[%clk 0:00:39]}  f3 {[%clk 0:00:42]} 41. Ke1 {[%clk 0:00:37]}  h4 {[%clk 0:00:39]} 42. Kf2 {[%clk 0:00:37]}  Kd3 {[%clk 0:00:36]} 43. Kxf3 {[%clk 0:00:34]}  Kc4 {[%clk 0:00:37]} 44. a4 {[%clk 0:00:33]}  Kb4 {[%clk 0:00:33]} 45. Bc7 {[%clk 0:00:31]}  h3 {[%clk 0:00:30]} 46. a5 {[%clk 0:00:31]}  h2 {[%clk 0:00:30]} 47. Kg2 {[%clk 0:00:31]}  Kc5 {[%clk 0:00:28]} 48. Kxh2 {[%clk 0:00:30]} 1-0


[Site "https://www.chess.com"]

[Event "Titled Tuesday Blitz December 13 Late 2022"]
[White "Brown, Andrew"]
[Black "Adel, Sara"]
[WhiteFideId "3206513"]
[BlackFideId "10616764"]
[WhiteElo "2245"]
[BlackElo "1997"]
[Result "1-0"]
[Round "09"]
[TimeControl "180+1"]
[Date "2022.12.14"]
[WhiteClock "0:00:06"]
[BlackClock "0:00:19"]

1. d4 {[%clk 0:02:57]}  Nf6 {[%clk 0:03:00]} 2. c4 {[%clk 0:02:57]}  g6 {[%clk 0:03:00]} 3. Nc3 {[%clk 0:02:56]}  Bg7 {[%clk 0:03:01]} 4. e4 {[%clk 0:02:55]}  d6 {[%clk 0:03:02]} 5. g3 {[%clk 0:02:55]}  Nc6 {[%clk 0:03:02]} 6. Bg2 {[%clk 0:02:55]}  e5 {[%clk 0:03:02]} 7. d5 {[%clk 0:02:53]}  Ne7 {[%clk 0:03:02]} 8. Nge2 {[%clk 0:02:53]}  O-O {[%clk 0:03:02]} 9. O-O {[%clk 0:02:52]}  Nh5 {[%clk 0:03:02]} 10. h3 {[%clk 0:02:37]}  f5 {[%clk 0:03:01]} 11. exf5 {[%clk 0:02:35]}  gxf5 {[%clk 0:03:00]} 12. f4 {[%clk 0:02:35]}  e4 {[%clk 0:02:57]} 13. Kh2 {[%clk 0:02:26]}  Qe8 {[%clk 0:02:56]} 14. Be3 {[%clk 0:02:19]}  Qg6 {[%clk 0:02:55]} 15. Bd4 {[%clk 0:01:55]}  Bh6 {[%clk 0:02:52]} 16. Qe1 {[%clk 0:01:48]}  Kf7 {[%clk 0:02:44]} 17. Nxe4 {[%clk 0:01:24]}  fxe4 {[%clk 0:02:42]} 18. f5 {[%clk 0:01:23]}  Qg5 {[%clk 0:01:54]} 19. h4 {[%clk 0:01:19]}  Qg8 {[%clk 0:01:49]} 20. Bxe4 {[%clk 0:01:14]}  Nf6 {[%clk 0:01:37]} 21. Nf4 {[%clk 0:00:46]}  Ng4+ {[%clk 0:01:24]} 22. Kh3 {[%clk 0:00:40]}  Ke8 {[%clk 0:01:22]} 23. Ne6 {[%clk 0:00:36]}  Bxe6 {[%clk 0:01:15]} 24. fxe6 {[%clk 0:00:36]}  Ng6 {[%clk 0:00:55]} 25. Rxf8+ {[%clk 0:00:33]}  Bxf8 {[%clk 0:00:54]} 26. Qf1 {[%clk 0:00:27]}  N6e5 {[%clk 0:00:48]} 27. Qf5 {[%clk 0:00:20]}  Bg7 {[%clk 0:00:42]} 28. Rf1 {[%clk 0:00:15]}  Ke7 {[%clk 0:00:41]} 29. Qxh7 {[%clk 0:00:11]}  Qxh7 {[%clk 0:00:36]} 30. Bxh7 {[%clk 0:00:12]}  Rf8 {[%clk 0:00:33]} 31. Bf5 {[%clk 0:00:11]}  Nh6 {[%clk 0:00:24]} 32. g4 {[%clk 0:00:11]}  Rg8 {[%clk 0:00:21]} 33. g5 {[%clk 0:00:10]}  Nxf5 {[%clk 0:00:20]} 34. Rxf5 {[%clk 0:00:10]}  Nxc4 {[%clk 0:00:18]} 35. Rf7+ {[%clk 0:00:10]}  Ke8 {[%clk 0:00:18]} 36. Rxg7 {[%clk 0:00:08]}  Rxg7 {[%clk 0:00:18]} 37. Bxg7 {[%clk 0:00:08]}  Ne3 {[%clk 0:00:18]} 38. h5 {[%clk 0:00:06]}  Nxd5 {[%clk 0:00:18]} 39. h6 {[%clk 0:00:06]}  Nf4+ {[%clk 0:00:18]} 40. Kg4 {[%clk 0:00:06]}  Nxe6 {[%clk 0:00:18]} 41. h7 {[%clk 0:00:07]}  Nxg7 {[%clk 0:00:18]} 42. h8=Q+ {[%clk 0:00:07]}  Kf7 {[%clk 0:00:19]} 43. Qc8 {[%clk 0:00:06]}  Ne6 {[%clk 0:00:19]} 44. Qd7+ {[%clk 0:00:06]} 1-0


[Site "https://www.chess.com"]

[Event "Titled Tuesday Blitz December 13 Late 2022"]
[White "Bryant, Todd"]
[Black "Adewumi, Tanitoluwa"]
[WhiteFideId "2031299"]
[BlackFideId "30966396"]
[WhiteElo "2344"]
[BlackElo "2477"]
[Result "1-0"]
[Round "09"]
[TimeControl "180+1"]
[Date "2022.12.14"]
[WhiteClock "0:00:22"]
[BlackClock "0:00:02"]

1. e4 {[%clk 0:03:00]}  c5 {[%clk 0:02:36]} 2. Nf3 {[%clk 0:02:59]}  e6 {[%clk 0:02:34]} 3. d4 {[%clk 0:03:00]}  cxd4 {[%clk 0:01:59]} 4. Nxd4 {[%clk 0:03:00]}  Nc6 {[%clk 0:01:53]} 5. Nc3 {[%clk 0:02:56]}  Qc7 {[%clk 0:01:50]} 6. Be3 {[%clk 0:02:55]}  a6 {[%clk 0:01:39]} 7. Qd2 {[%clk 0:02:52]}  Nf6 {[%clk 0:01:37]} 8. O-O-O {[%clk 0:02:52]}  Be7 {[%clk 0:01:37]} 9. f3 {[%clk 0:02:52]}  b5 {[%clk 0:01:35]} 10. Nxc6 {[%clk 0:02:52]}  Qxc6 {[%clk 0:01:34]} 11. g4 {[%clk 0:02:47]}  b4 {[%clk 0:01:31]} 12. Ne2 {[%clk 0:02:43]}  Qa4 {[%clk 0:01:14]} 13. Kb1 {[%clk 0:02:35]}  d6 {[%clk 0:01:11]} 14. Nd4 {[%clk 0:02:18]}  Bb7 {[%clk 0:01:05]} 15. Bc4 {[%clk 0:02:00]}  Rc8 {[%clk 0:00:51]} 16. Bb3 {[%clk 0:01:51]}  Qa5 {[%clk 0:00:50]} 17. g5 {[%clk 0:01:46]}  Nd7 {[%clk 0:00:48]} 18. h4 {[%clk 0:01:42]}  Ne5 {[%clk 0:00:43]} 19. h5 {[%clk 0:01:26]}  d5 {[%clk 0:00:31]} 20. Bf4 {[%clk 0:01:03]}  Nc4 {[%clk 0:00:29]} 21. Bxc4 {[%clk 0:01:03]}  dxc4 {[%clk 0:00:27]} 22. Nxe6 {[%clk 0:00:50]}  fxe6 {[%clk 0:00:04]} 23. Qd7+ {[%clk 0:00:51]}  Kf8 {[%clk 0:00:02]} 24. Qxb7 {[%clk 0:00:45]}  Qc5 {[%clk 0:00:01]} 25. h6 {[%clk 0:00:35]}  g6 {[%clk 0:00:01]} 26. Rd7 {[%clk 0:00:26]}  Ke8 {[%clk 0:00:01]} 27. Rxe7+ {[%clk 0:00:21]}  Qxe7 {[%clk 0:00:01]} 28. Qxc8+ {[%clk 0:00:22]}  Qd8 {[%clk 0:00:02]} 1-0


[Site "https://www.chess.com"]

[Event "Titled Tuesday Blitz December 13 Late 2022"]
[White "Buchenau, Frank"]
[Black "Estrada Nieto, Julian"]
[WhiteFideId "4604350"]
[BlackFideId "5101018"]
[WhiteElo "2157"]
[BlackElo "2195"]
[Result "1/2-1/2"]
[Round "09"]
[TimeControl "180+1"]
[Date "2022.12.14"]
[WhiteClock "0:00:04"]
[BlackClock "0:00:12"]

1. e4 {[%clk 0:03:00]}  e5 {[%clk 0:02:54]} 2. Bc4 {[%clk 0:03:00]}  Nf6 {[%clk 0:02:53]} 3. d3 {[%clk 0:03:00]}  Nc6 {[%clk 0:02:53]} 4. Nf3 {[%clk 0:03:00]}  Bc5 {[%clk 0:02:53]} 5. O-O {[%clk 0:03:00]}  d6 {[%clk 0:02:53]} 6. c3 {[%clk 0:03:01]}  a6 {[%clk 0:02:51]} 7. Bb3 {[%clk 0:02:57]}  Ba7 {[%clk 0:02:50]} 8. Nbd2 {[%clk 0:02:57]}  h6 {[%clk 0:02:48]} 9. Re1 {[%clk 0:02:56]}  O-O {[%clk 0:02:47]} 10. Nf1 {[%clk 0:02:55]}  Re8 {[%clk 0:02:46]} 11. Ng3 {[%clk 0:02:52]}  Be6 {[%clk 0:02:46]} 12. Bxe6 {[%clk 0:02:51]}  Rxe6 {[%clk 0:02:46]} 13. d4 {[%clk 0:02:48]}  d5 {[%clk 0:02:34]} 14. exd5 {[%clk 0:02:32]}  Qxd5 {[%clk 0:02:29]} 15. dxe5 {[%clk 0:02:13]}  Qxd1 {[%clk 0:02:26]} 16. Rxd1 {[%clk 0:02:14]}  Nxe5 {[%clk 0:02:26]} 17. Nxe5 {[%clk 0:02:08]}  Rxe5 {[%clk 0:02:26]} 18. Bf4 {[%clk 0:02:08]}  Rb5 {[%clk 0:02:09]} 19. Rd2 {[%clk 0:01:55]}  Bb6 {[%clk 0:01:58]} 20. Rad1 {[%clk 0:01:48]}  Re8 {[%clk 0:01:48]} 21. c4 {[%clk 0:01:36]}  Rc5 {[%clk 0:01:47]} 22. b3 {[%clk 0:01:33]}  Rc6 {[%clk 0:01:46]} 23. h3 {[%clk 0:01:13]}  Ne4 {[%clk 0:01:29]} 24. Nxe4 {[%clk 0:00:59]}  Rxe4 {[%clk 0:01:28]} 25. Bg3 {[%clk 0:00:53]}  Rce6 {[%clk 0:01:25]} 26. Kf1 {[%clk 0:00:50]}  Ba5 {[%clk 0:01:23]} 27. f3 {[%clk 0:00:42]}  Bxd2 {[%clk 0:01:14]} 28. fxe4 {[%clk 0:00:40]}  Ba5 {[%clk 0:01:06]} 29. Rd5 {[%clk 0:00:31]}  Bc3 {[%clk 0:00:50]} 30. Rd7 {[%clk 0:00:21]}  Rxe4 {[%clk 0:00:41]} 31. Rxc7 {[%clk 0:00:21]}  b6 {[%clk 0:00:40]} 32. Rc8+ {[%clk 0:00:16]}  Kh7 {[%clk 0:00:39]} 33. Rc6 {[%clk 0:00:15]}  Bd4 {[%clk 0:00:38]} 34. b4 {[%clk 0:00:14]}  f5 {[%clk 0:00:26]} 35. c5 {[%clk 0:00:12]}  bxc5 {[%clk 0:00:26]} 36. bxc5 {[%clk 0:00:12]}  f4 {[%clk 0:00:26]} 37. Bf2 {[%clk 0:00:12]}  Bxf2 {[%clk 0:00:25]} 38. Kxf2 {[%clk 0:00:12]}  Ra4 {[%clk 0:00:25]} 39. Kf3 {[%clk 0:00:11]}  Rxa2 {[%clk 0:00:23]} 40. Kxf4 {[%clk 0:00:09]}  Rxg2 {[%clk 0:00:23]} 41. Rxa6 {[%clk 0:00:09]}  Rh2 {[%clk 0:00:23]} 42. Kg3 {[%clk 0:00:08]}  Rc2 {[%clk 0:00:23]} 43. c6 {[%clk 0:00:09]}  Kg6 {[%clk 0:00:22]} 44. h4 {[%clk 0:00:07]}  Kf5 {[%clk 0:00:18]} 45. Ra5+ {[%clk 0:00:06]}  Ke6 {[%clk 0:00:17]} 46. Ra7 {[%clk 0:00:05]}  g6 {[%clk 0:00:16]} 47. Rh7 {[%clk 0:00:03]}  h5 {[%clk 0:00:16]} 48. c7 {[%clk 0:00:02]}  Kf5 {[%clk 0:00:14]} 49. Rf7+ {[%clk 0:00:02]}  Ke6 {[%clk 0:00:14]} 50. Rh7 {[%clk 0:00:03]}  Kf5 {[%clk 0:00:12]} 51. Rf7+ {[%clk 0:00:03]}  Ke6 {[%clk 0:00:12]} 52. Rh7 {[%clk 0:00:04]} 1/2-1/2


[Site "https://www.chess.com"]

[Event "Titled Tuesday Blitz December 13 Late 2022"]
[White "Chigaev, Maksim"]
[Black "Firouzja, Alireza"]
[WhiteFideId "4108116"]
[BlackFideId "12573981"]
[WhiteElo "2542"]
[BlackElo "2904"]
[Result "1/2-1/2"]
[Round "09"]
[TimeControl "180+1"]
[Date "2022.12.13"]
[WhiteClock "0:00:05"]
[BlackClock "0:00:06"]

1. e4 {[%clk 0:03:00]}  e6 {[%clk 0:02:53]} 2. d4 {[%clk 0:03:00]}  d5 {[%clk 0:02:53]} 3. Nc3 {[%clk 0:02:59]}  Bb4 {[%clk 0:02:51]} 4. e5 {[%clk 0:02:59]}  c5 {[%clk 0:02:51]} 5. a3 {[%clk 0:03:00]}  Bxc3+ {[%clk 0:02:51]} 6. bxc3 {[%clk 0:03:00]}  Ne7 {[%clk 0:02:51]} 7. Qg4 {[%clk 0:02:56]}  O-O {[%clk 0:02:51]} 8. Bd3 {[%clk 0:02:54]}  Nbc6 {[%clk 0:02:48]} 9. Nf3 {[%clk 0:02:53]}  f6 {[%clk 0:02:42]} 10. exf6 {[%clk 0:02:37]}  Rxf6 {[%clk 0:02:41]} 11. Bg5 {[%clk 0:02:38]}  e5 {[%clk 0:02:25]} 12. Qh4 {[%clk 0:02:38]}  e4 {[%clk 0:02:25]} 13. Bxf6 {[%clk 0:02:31]}  gxf6 {[%clk 0:02:26]} 14. Qxf6 {[%clk 0:02:07]}  Ng6 {[%clk 0:02:14]} 15. Qxd8+ {[%clk 0:02:03]}  Nxd8 {[%clk 0:02:15]} 16. dxc5 {[%clk 0:01:55]}  exf3 {[%clk 0:01:46]} 17. gxf3 {[%clk 0:01:53]}  Ne6 {[%clk 0:01:46]} 18. Kd2 {[%clk 0:01:51]}  Nxc5 {[%clk 0:01:43]} 19. Rhg1 {[%clk 0:01:50]}  Kf7 {[%clk 0:01:38]} 20. Rg5 {[%clk 0:01:45]}  Be6 {[%clk 0:01:34]} 21. Rag1 {[%clk 0:01:42]}  Nxd3 {[%clk 0:01:24]} 22. cxd3 {[%clk 0:01:42]}  Kf6 {[%clk 0:01:06]} 23. Rh5 {[%clk 0:01:35]}  Rh8 {[%clk 0:01:06]} 24. a4 {[%clk 0:01:26]}  h6 {[%clk 0:01:04]} 25. Ke3 {[%clk 0:01:18]}  Bf5 {[%clk 0:01:02]} 26. f4 {[%clk 0:00:59]}  b6 {[%clk 0:00:54]} 27. a5 {[%clk 0:00:53]}  bxa5 {[%clk 0:00:40]} 28. Ra1 {[%clk 0:00:53]}  Re8+ {[%clk 0:00:40]} 29. Kd4 {[%clk 0:00:50]}  Nxf4 {[%clk 0:00:34]} 30. Rxh6+ {[%clk 0:00:46]}  Kg5 {[%clk 0:00:22]} 31. Ra6 {[%clk 0:00:44]}  Bxd3 {[%clk 0:00:19]} 32. Rxa7 {[%clk 0:00:25]}  Re4+ {[%clk 0:00:17]} 33. Kc5 {[%clk 0:00:25]}  Rc4+ {[%clk 0:00:18]} 34. Kd6 {[%clk 0:00:25]}  Rxc3 {[%clk 0:00:19]} 35. R7xa5 {[%clk 0:00:22]}  Be4 {[%clk 0:00:17]} 36. Rg1+ {[%clk 0:00:14]}  Kf5 {[%clk 0:00:17]} 37. Ra8 {[%clk 0:00:14]}  Ne6 {[%clk 0:00:09]} 38. Rh8 {[%clk 0:00:07]}  d4 {[%clk 0:00:02]} 39. f3 {[%clk 0:00:03]}  Rc6+ {[%clk 0:00:02]} 40. Kd7 {[%clk 0:00:03]}  Bd5 {[%clk 0:00:03]} 41. Rh5+ {[%clk 0:00:03]}  Kf4 {[%clk 0:00:03]} 42. Rxd5 {[%clk 0:00:03]}  Ra6 {[%clk 0:00:03]} 43. Rg4+ {[%clk 0:00:01]}  Kxf3 {[%clk 0:00:04]} 44. Rgxd4 {[%clk 0:00:01]}  Nxd4 {[%clk 0:00:04]} 45. Rxd4 {[%clk 0:00:02]}  Rh6 {[%clk 0:00:05]} 46. Rd6 {[%clk 0:00:03]}  Rxd6+ {[%clk 0:00:04]} 47. Kxd6 {[%clk 0:00:03]}  Kg4 {[%clk 0:00:04]} 48. Ke5 {[%clk 0:00:04]}  Kh3 {[%clk 0:00:05]} 49. Kf4 {[%clk 0:00:05]}  Kxh2 {[%clk 0:00:06]} 1/2-1/2


[Site "https://www.chess.com"]

[Event "Titled Tuesday Blitz December 13 Late 2022"]
[White "Clawitter, Craig"]
[Black "Campelo, Leandro Fabricio"]
[WhiteFideId "2023105"]
[BlackFideId "2103346"]
[WhiteElo "2198"]
[BlackElo "2070"]
[Result "1-0"]
[Round "09"]
[TimeControl "180+1"]
[Date "2022.12.14"]
[WhiteClock "0:00:07"]
[BlackClock "0:00:06"]

1. e4 {[%clk 0:02:31]}  c5 {[%clk 0:02:57]} 2. Nf3 {[%clk 0:02:31]}  e6 {[%clk 0:02:57]} 3. d4 {[%clk 0:02:31]}  cxd4 {[%clk 0:02:57]} 4. Nxd4 {[%clk 0:02:32]}  Nc6 {[%clk 0:02:57]} 5. Nc3 {[%clk 0:02:32]}  Qc7 {[%clk 0:02:57]} 6. Be3 {[%clk 0:02:32]}  a6 {[%clk 0:02:56]} 7. Qd2 {[%clk 0:02:33]}  Nf6 {[%clk 0:02:56]} 8. O-O-O {[%clk 0:02:33]}  Be7 {[%clk 0:02:57]} 9. f3 {[%clk 0:02:31]}  O-O {[%clk 0:02:56]} 10. g4 {[%clk 0:02:31]}  b5 {[%clk 0:02:56]} 11. g5 {[%clk 0:02:23]}  Nh5 {[%clk 0:02:55]} 12. Nxc6 {[%clk 0:02:19]}  dxc6 {[%clk 0:02:35]} 13. Bh3 {[%clk 0:02:09]}  e5 {[%clk 0:02:04]} 14. Bg4 {[%clk 0:02:07]}  Nf4 {[%clk 0:02:03]} 15. h4 {[%clk 0:01:53]}  b4 {[%clk 0:01:40]} 16. Ne2 {[%clk 0:01:37]}  Nxe2+ {[%clk 0:01:37]} 17. Qxe2 {[%clk 0:01:34]}  Bxg4 {[%clk 0:01:37]} 18. fxg4 {[%clk 0:01:35]}  c5 {[%clk 0:01:22]} 19. Qc4 {[%clk 0:01:35]}  Rad8 {[%clk 0:01:10]} 20. h5 {[%clk 0:01:30]}  Qc6 {[%clk 0:00:52]} 21. Rd5 {[%clk 0:01:00]}  Rxd5 {[%clk 0:00:37]} 22. exd5 {[%clk 0:00:54]}  Qb5 {[%clk 0:00:37]} 23. Qe4 {[%clk 0:00:53]}  Bd6 {[%clk 0:00:29]} 24. g6 {[%clk 0:00:48]}  fxg6 {[%clk 0:00:29]} 25. hxg6 {[%clk 0:00:38]}  h6 {[%clk 0:00:27]} 26. g5 {[%clk 0:00:22]}  Rf1+ {[%clk 0:00:17]} 27. Rxf1 {[%clk 0:00:22]}  Qxf1+ {[%clk 0:00:17]} 28. Kd2 {[%clk 0:00:23]}  c4 {[%clk 0:00:14]} 29. gxh6 {[%clk 0:00:18]}  gxh6 {[%clk 0:00:13]} 30. Qg4 {[%clk 0:00:11]}  c3+ {[%clk 0:00:10]} 31. bxc3 {[%clk 0:00:10]}  bxc3+ {[%clk 0:00:10]} 32. Kxc3 {[%clk 0:00:11]}  Qa1+ {[%clk 0:00:08]} 33. Kd2 {[%clk 0:00:10]}  Bb4+ {[%clk 0:00:08]} 34. Qxb4 {[%clk 0:00:10]}  Qxa2 {[%clk 0:00:05]} 35. Qb8+ {[%clk 0:00:07]}  Kg7 {[%clk 0:00:05]} 36. Qxe5+ {[%clk 0:00:07]}  Kxg6 {[%clk 0:00:05]} 37. Qe6+ {[%clk 0:00:08]}  Kh5 {[%clk 0:00:06]} 38. Qf5+ {[%clk 0:00:07]}  Kh4 {[%clk 0:00:06]} 39. Bf2# {[%clk 0:00:07]} 1-0


[Site "https://www.chess.com"]

[Event "Titled Tuesday Blitz December 13 Late 2022"]
[White "Figorito, Nick"]
[Black "Santos Flores, Alberto"]
[WhiteFideId "30923689"]
[BlackFideId "3601234"]
[WhiteElo "2437"]
[BlackElo "2235"]
[Result "0-1"]
[Round "09"]
[TimeControl "180+1"]
[Date "2022.12.14"]
[WhiteClock "0:00:23"]
[BlackClock "0:00:37"]

1. Nf3 {[%clk 0:03:00]}  d5 {[%clk 0:02:57]} 2. g3 {[%clk 0:03:01]}  Nf6 {[%clk 0:02:57]} 3. Bg2 {[%clk 0:03:01]}  e6 {[%clk 0:02:56]} 4. O-O {[%clk 0:03:01]}  Be7 {[%clk 0:02:56]} 5. d4 {[%clk 0:03:02]}  O-O {[%clk 0:02:56]} 6. Nbd2 {[%clk 0:03:02]}  b6 {[%clk 0:02:54]} 7. c4 {[%clk 0:03:02]}  Bb7 {[%clk 0:02:54]} 8. cxd5 {[%clk 0:03:02]}  Bxd5 {[%clk 0:02:50]} 9. Re1 {[%clk 0:03:00]}  c5 {[%clk 0:02:50]} 10. dxc5 {[%clk 0:02:58]}  Bxc5 {[%clk 0:02:49]} 11. Nb3 {[%clk 0:02:58]}  Be7 {[%clk 0:02:42]} 12. Bf4 {[%clk 0:02:51]}  Nbd7 {[%clk 0:02:33]} 13. Ne5 {[%clk 0:02:43]}  Nxe5 {[%clk 0:02:32]} 14. Bxe5 {[%clk 0:02:42]}  Bxg2 {[%clk 0:02:31]} 15. Qxd8 {[%clk 0:02:38]}  Rfxd8 {[%clk 0:02:29]} 16. Kxg2 {[%clk 0:02:39]}  Rd5 {[%clk 0:02:22]} 17. Bd4 {[%clk 0:02:18]}  Rad8 {[%clk 0:02:15]} 18. Be3 {[%clk 0:02:11]}  Ng4 {[%clk 0:02:15]} 19. Kf3 {[%clk 0:01:59]}  Nxh2+ {[%clk 0:02:03]} 20. Kg2 {[%clk 0:01:56]}  Ng4 {[%clk 0:02:03]} 21. Bf4 {[%clk 0:01:55]}  g5 {[%clk 0:01:56]} 22. e4 {[%clk 0:01:52]}  R5d7 {[%clk 0:01:51]} 23. Be3 {[%clk 0:01:43]}  Nxe3+ {[%clk 0:01:50]} 24. Rxe3 {[%clk 0:01:44]}  g4 {[%clk 0:01:26]} 25. Re2 {[%clk 0:01:34]}  a5 {[%clk 0:01:23]} 26. Rc1 {[%clk 0:01:25]}  a4 {[%clk 0:01:23]} 27. Na1 {[%clk 0:01:26]}  Rd2 {[%clk 0:01:20]} 28. Rce1 {[%clk 0:01:23]}  Bf6 {[%clk 0:01:04]} 29. e5 {[%clk 0:01:15]}  Bg5 {[%clk 0:01:03]} 30. Nc2 {[%clk 0:01:13]}  Rxe2 {[%clk 0:01:03]} 31. Rxe2 {[%clk 0:01:14]}  Rd2 {[%clk 0:01:02]} 32. Rxd2 {[%clk 0:01:13]}  Bxd2 {[%clk 0:01:03]} 33. Kf1 {[%clk 0:01:05]}  Bh6 {[%clk 0:00:58]} 34. Nd4 {[%clk 0:00:55]}  Bg7 {[%clk 0:00:57]} 35. Nc6 {[%clk 0:00:55]}  Kf8 {[%clk 0:00:56]} 36. Ke2 {[%clk 0:00:54]}  Ke8 {[%clk 0:00:57]} 37. Kd3 {[%clk 0:00:52]}  Kd7 {[%clk 0:00:57]} 38. Nb4 {[%clk 0:00:40]}  Bxe5 {[%clk 0:00:56]} 39. b3 {[%clk 0:00:41]}  axb3 {[%clk 0:00:56]} 40. axb3 {[%clk 0:00:42]}  h5 {[%clk 0:00:53]} 41. Ke4 {[%clk 0:00:41]}  Bd6 {[%clk 0:00:50]} 42. Nd3 {[%clk 0:00:39]}  f5+ {[%clk 0:00:49]} 43. Ke3 {[%clk 0:00:39]}  e5 {[%clk 0:00:47]} 44. Ne1 {[%clk 0:00:34]}  Ke6 {[%clk 0:00:46]} 45. Ng2 {[%clk 0:00:35]}  Kd5 {[%clk 0:00:44]} 46. Nh4 {[%clk 0:00:31]}  f4+ {[%clk 0:00:44]} 47. gxf4 {[%clk 0:00:30]}  exf4+ {[%clk 0:00:45]} 48. Kd3 {[%clk 0:00:30]}  Bc5 {[%clk 0:00:44]} 49. Ng6 {[%clk 0:00:27]}  f3 {[%clk 0:00:38]} 50. Nf4+ {[%clk 0:00:25]}  Ke5 {[%clk 0:00:38]} 51. Nxh5 {[%clk 0:00:23]}  Bxf2 {[%clk 0:00:37]} 0-1


[Site "https://www.chess.com"]